[Event "CCT Airthings Masters Play-In 2023"]
[Site "Online"]
[Date "2023.02.03"]
[Round "2"]
[White "Indianlad"]
[Black "GHANDEEVAM"]
[Result "1/2-1/2"]
[ECO "D46"]
[WhiteElo "2543"]
[BlackElo "2714"]
[Annotator "TA"]
[PlyCount "103"]
[EventDate "2023.02.03"]
[EventType "swiss"]
[EventCountry "NET"]
[SourceTitle "playchess.com"]
[Source "ChessBase"]
[SourceQuality "1"]
[TimeControl "600+2"]

{[%evp 20,103,9,8,16,0,0,0,0,0,0,0,0,0,18,9,9,24,8,0,0,0,0,0,0,0,0,0,26,-51,0,0,0,0,0,0,38,0,0,0,0,0,-7,-6,0,-20,0,0,0,0,0,0,69,0,0,0,0,0,0,0,0,0,0,0,0,0,0,0,0,0,0,0,0,0,0,0,0,0,0,0,0,0,0,0,0,0]} 1. d4 {[%emt 0:00:04]} d5 {[%emt 0:00:06]} 2. Nf3 {[%emt 0:00:02]} Nf6 {[%emt 0:00:01]} 3. c4 {[%emt 0:00:00]} e6 {[%emt 0:00:00]} 4. Nc3 {[%emt 0:00:03]} c6 {[%emt 0:00:03]} 5. e3 {[%emt 0:00:13]} Nbd7 {[%emt 0:00:02]} 6. Be2 {[%emt 0:00:01]} Bd6 {[%emt 0:00:01]} 7. O-O {[%emt 0:00:01]} O-O {[%emt 0:00:02]} 8. Qc2 {[%emt 0:00:11]} dxc4 {[%emt 0:00:05]} 9. a4 {[%emt 0:00:01]} a6 {[%emt 0:00:18]} 10. Bxc4 {[%emt 0:00:04]} c5 {[%emt 0:00:01]} 11. Rd1 {[%emt 0:00:06]} Qc7 $1 {[%emt 0:00:02][%mdl 4] is now more promising than 11...cxd4. D46: Semi-Slav: 5 e3 Nbd7 6 Bd3, Black avoids the Meran.} 12. Bd3 {[%emt 0:00:18]} cxd4 {[%emt 0:00:19]} 13. exd4 {[%emt 0:00:04]} b6 {[%emt 0:00:01]} 14. Qe2 {[%emt 0:00:33]} Bb7 {[%emt 0:00:05]} 15. h3 {[%emt 0:00:00] [#]} Qc6 $146 {[%emt 0:01:23]} ({Predecessor:} 15... Bf4 16. Be3 Bxe3 17. fxe3 e5 18. Rac1 exd4 19. exd4 Rfe8 20. Qf2 Qd6 21. Bc4 Rac8 {1-0 Gavrilov,A (2456)-Yagupov,I (2405) Olomouc GM 19th 2016 (3)}) 16. Be3 {[%emt 0:01:03]} Bc7 {[%emt 0:00:11]} 17. Rac1 {[%emt 0:00:11][%cal Oc3e4]} Qd6 {[%emt 0:00:01]} 18. Bg5 {[%emt 0:00:09]} h6 {[%emt 0:01:58] [#] ...Bxf3 would be deadly.} (18... Rfc8 {simplifies} 19. Bxf6 Nxf6 20. Ne4 Nxe4 21. Bxe4 Bxe4 22. Qxe4 Qd5) 19. Bxf6 {[%emt 0:00:03]} Bxf3 {[%emt 0:00:13]} (19... gxf6 $2 20. Ne4 Bxe4 21. Bxe4 $18 (21. Qxe4 f5 $16)) 20. Qxf3 {[%emt 0:00:02] Threatens to win with Bh4.} Qh2+ {[%emt 0:00:00]} ({But not} 20... gxf6 21. g3 (21. Qe4 Qh2+ 22. Kf1 f5 $11) 21... f5 22. Qe2 $16) 21. Kf1 {[%emt 0:00:02]} Nxf6 {[%emt 0:00:00]} 22. Ne4 {[%emt 0:00:31]} Nd5 {[%emt 0:00:03]} 23. Ng3 {[%emt 0:00:50]} Bf4 {[%emt 0:00:32]} (23... Bd6 $5 {[%cal Rb6b5]}) 24. Rb1 {[%emt 0:00:43] White is weak on the dark squares} ({White should play} 24. Ke2 $11 Bxc1 25. Rxc1) 24... f5 {[%emt 0:01:05]} (24... Bg5 $15) 25. Ke2 {[%emt 0:00:42]} Bxg3 {[%emt 0:00:03]} 26. fxg3 {[%emt 0:00:01][%cal Bf2g3,Bg3g4,Bg4g5][%mdl 32] aiming for Rh1.} f4 $1 {[%emt 0:00:02]} 27. g4 {[%emt 0:00:03]} Rad8 {[%emt 0:00:34]} 28. Be4 {[%emt 0:00:18]} Nf6 {[%emt 0:00:12] And now ...Nxe4 would win.} ({Don't play} 28... Ne3 29. Rh1 Qxg2+ 30. Qxg2 $16) 29. Bc6 {[%emt 0:00:11]} Rd6 {[%emt 0:00:19]} 30. Rbc1 {[%emt 0:00:14]} Rfd8 {[%emt 0:00:07]} 31. Qf2 {[%emt 0:01:02]} (31. Rh1 $5 Qg3 $8 32. Qxg3 fxg3 33. Rhd1 $11) 31... h5 {[%emt 0:00:54]} 32. g5 {[%emt 0:00:15] [#]} Rxc6 $1 {[%emt 0:00:02][%mdl 64] Remove Defender} 33. gxf6 {[%emt 0:00:22]} (33. Rxc6 Ne4) 33... Rdc8 {[%emt 0:00:07]} 34. Rxc6 {[%emt 0:00:03]} Rxc6 {[%emt 0:00:00]} 35. fxg7 {[%emt 0:00:03]} Kxg7 $11 {[%emt 0:00:16][%mdl 4096] Endgame KQR-KQR} (35... Rc7 $11) 36. d5 {[%emt 0:00:09]} (36. Kd3 $14) 36... Rc2+ {[%emt 0:00:08] The position is equal.} 37. Rd2 {[%emt 0:00:01]} Rxd2+ {[%emt 0:00:00]} 38. Kxd2 {[%emt 0:00:01]} exd5 {[%emt 0:00:00] KQ-KQ} 39. Qd4+ {[%emt 0:00:01]} (39. Qxb6 $2 Qxg2+ 40. Ke1 Qg3+ 41. Kd2 Qh2+ 42. Ke1 Qg3+ 43. Ke2 f3+ 44. Kd3 Qxh3 $17) 39... Kg6 {[%emt 0:00:24]} 40. Qxd5 {[%emt 0:00:04]} Qg3 {[%emt 0:00:13]} 41. Qe6+ {[%emt 0:01:13]} Kh7 {[%emt 0:00:07]} 42. Qf7+ {[%emt 0:00:09]} Kh6 {[%emt 0:00:01]} 43. Qf8+ {[%emt 0:00:04]} Kh7 {[%emt 0:00:02]} 44. Qe7+ {[%emt 0:00:01]} Kh6 {[%emt 0:00:01]} 45. Qd6+ {[%emt 0:00:03]} Kg5 {[%emt 0:00:18]} 46. Qe7+ {[%emt 0:00:05]} Kf5 {[%emt 0:00:17]} 47. Qd7+ {[%emt 0:00:05]} Ke5 {[%emt 0:00:05]} 48. Qe7+ {[%emt 0:00:06]} Kd5 {[%emt 0:00:08]} 49. Qd7+ {[%emt 0:00:01]} Kc4 {[%emt 0:00:21]} 50. Qe6+ {[%emt 0:00:14]} Kc5 {[%emt 0:00:01]} 51. Qe7+ {[%emt 0:00:09]} Kd5 {[%emt 0:00:03]} 52. Qd7+ {[%emt 0:00:01] A balanced but interesting game.   Weighted Error Value: White=0.08 (flawless) /Black=0.08 (flawless)} 1/2-1/2

[Event "CCT Airthings Masters Play-In 2023"]
[Site "Online"]
[Date "2023.02.03"]
[Round "2"]
[White "vugarrasulov"]
[Black "FabianoCaruana"]
[Result "0-1"]
[ECO "B22"]
[WhiteElo "2538"]
[BlackElo "2702"]
[Annotator "TA"]
[PlyCount "98"]
[EventDate "2023.02.03"]
[EventType "swiss"]
[EventCountry "NET"]
[SourceTitle "playchess.com"]
[Source "ChessBase"]
[SourceQuality "1"]
[TimeControl "600+2"]

{[%evp 15,98,0,0,0,0,0,0,-10,0,0,10,-29,-24,-41,-23,-47,-30,-23,-23,-27,-21,-51,0,-8,0,-8,-5,-21,-28,-23,0,-45,-52,-76,-86,-76,-74,-529,-144,-138,-140,-134,-75,-144,-139,-238,-238,-239,-237,-236,-231,-239,-239,-290,-287,-281,-191,-230,-160,-158,-113,-202,-102,-166,-110,-166,-166,-166,-166,-270,-255,-374,-371,-247,-247,-368,-361,-563,-606,-675,-643,-624,-594,-1660,-1518]} 1. e4 {[%emt 0:00:04][%cal Be2e4,Be4e5][%mdl 32]} c5 {[%emt 0:00:04]} 2. Nf3 {[%emt 0:00:03]} Nc6 {[%emt 0:00:01]} 3. c3 {[%emt 0:00:04]} Nf6 {[%emt 0:00:04][%cal Bg8f6,Bf6d5,Bd5b4,Bb4c2][%mdl 32]} 4. e5 {[%emt 0:00:02]} Nd5 {[%emt 0:00:01]} 5. d4 {[%emt 0:00:09]} cxd4 {[%emt 0:00:02]} 6. cxd4 {[%emt 0:00:01]} d6 {[%emt 0:00:02]} 7. Bc4 {[%emt 0:00:14]} dxe5 {[%emt 0:00:41]} 8. dxe5 {[%emt 0:00:16]} Ndb4 {[%emt 0:00:28]} 9. O-O {[%emt 0:00:17] aiming for Qe2. is now debated instead of 9.Qb3. B22: Sicilian: 2 c3.} Qxd1 {[%emt 0:00:40]} 10. Rxd1 {[%emt 0:00:00]} Bg4 {[%emt 0:00:01]} (10... Nc2 11. Na3 Nxa3 12. bxa3 $16) 11. e6 {[%emt 0:00:50] The position is equal.} fxe6 {[%emt 0:00:49]} 12. Nc3 {[%emt 0:00:12][%cal Bb1c3,Bc3e4,Be4c5][%mdl 32] [#]} a6 $146 {[%emt 0:00:12]} ({Predecessor:} 12... Rc8 13. h3 Bxf3 14. gxf3 Kf7 15. Ne4 h6 16. Nc5 Nd4 17. Rxd4 Rxc5 18. Rf4+ Ke8 19. Bxe6 {1-0 Vajda,L (2534)-Ioannidis,E (2459) Titled Tuesday intern op 24th May Early blitz 2022 (2)}) 13. a3 {[%emt 0:00:44]} Nc2 {[%emt 0:00:03]} 14. Ra2 {[%emt 0:00:28]} g6 {[%emt 0:00:11]} 15. Ne4 {[%emt 0:01:01]} b5 {[%emt 0:00:53]} 16. Be2 {[%emt 0:00:39]} Bg7 {[%emt 0:00:57]} 17. Nc5 {[%emt 0:00:20] b3 would be deadly.} Rc8 {[%emt 0:00:54]} 18. b4 {[%emt 0:00:18]} Bxf3 {[%emt 0:00:27]} 19. Bxf3 {[%emt 0:00:04]} N2d4 {[%emt 0:00:06]} 20. Bg4 $132 {[%emt 0:00:17][%mdl 2048] White is not holding back} Kf7 {[%emt 0:00:12]} 21. Rad2 {[%emt 0:00:58]} (21. Bb2 {looks sharper.} h5 22. Bh3 Rhd8 23. Kf1) 21... Nf5 {[%emt 0:00:47]} 22. Nxa6 {[%emt 0:00:28]} Ne5 {[%emt 0:00:04]} 23. Be2 {[%emt 0:00:07]} (23. Bxf5 $5 exf5 24. Nc5 $11) 23... Bh6 {[%emt 0:00:05]} 24. Bb2 {[%emt 0:00:38]} Bxd2 {[%emt 0:00:05]} 25. Bxe5 {[%emt 0:00:37] This pair of bishops is nice.} Rhd8 {[%emt 0:00:03] Threatens to win with ...Bc1.} 26. Bxb5 $2 {[%emt 0:00:21][%mdl 8192]} (26. g4 $17 Nh4 27. Bg3 (27. Bxb5 $2 Nf3+ 28. Kg2 Nxe5 $19)) 26... Rd5 $2 {[%emt 0:00:22]} (26... Bf4 $19 {and Black stays clearly on top.} 27. Rf1 (27. Rxd8 {leads to mate.} Rc1+ 28. Bf1 Ne3) 27... Bxe5) 27. Nc5 $17 {[%emt 0:00:27][%cal Og2g3]} Rxe5 {[%emt 0:01:31]} 28. Rxd2 {[%emt 0:00:02]} Re1+ {[%emt 0:00:01]} 29. Bf1 {[%emt 0:00:02]} Ra1 $1 {[%emt 0:00:00]} 30. a4 {[%emt 0:00:20]} (30. g3 $17) 30... Rb1 $19 {[%emt 0:00:03]} 31. Nd3 {[%emt 0:00:09]} Rc3 {[%emt 0:00:09]} 32. g3 {[%emt 0:00:27]} Ra3 $1 {[%emt 0:00:01][%cal Oa3a1] And now ...Raa1! would win.} 33. Kg2 {[%emt 0:00:02]} Rxa4 {[%emt 0:00:05]} 34. Be2 {[%emt 0:00:02]} Kf6 {[%emt 0:00:07]} 35. h4 {[%emt 0:00:03]} Nd6 {[%emt 0:00:09]} 36. Bg4 {[%emt 0:00:04]} h5 {[%emt 0:00:15]} 37. Bxe6 {[%emt 0:00:03] [#]} Raa1 $1 {[%emt 0:00:07]} ({Weaker is} 37... Kxe6 38. Nc5+ Kf5 39. Rd5+ e5 40. Nxa4 Rxb4 41. Nc3 $11) 38. Bd5 {[%emt 0:00:03]} (38. Nf4 $17) 38... e5 {[%emt 0:00:04]} (38... Rd1 $19 39. Rxd1 Rxd1) 39. Nc5 {[%emt 0:00:03] [#]} (39. Kf3 $17) 39... Rg1+ {[%emt 0:00:08]} ({Stronger than} 39... Rxb4 40. Bc6 Rd4 41. Re2 $17) (39... Rd1 $1 $19 {[%cal Rd1d2]} 40. Rxd1 Rxd1) 40. Kh2 {[%emt 0:00:04]} (40. Kf3 $17) 40... Rgd1 {[%emt 0:00:05]} 41. Rxd1 {[%emt 0:00:06]} Rxd1 {[%emt 0:00:00][%mdl 4096] Endgame KRN-KBN} 42. Bb3 {[%emt 0:00:06]} (42. Ne4+ {was worth a try.} Nxe4 43. Bxe4) 42... Rd2 {[%emt 0:00:05]} 43. Kg2 {[%emt 0:00:00]} (43. Kg1 {is the only way for White.}) 43... e4 {[%emt 0:00:02] ...e3 is the strong threat.} 44. Kf1 {[%emt 0:00:03]} Rb2 {[%emt 0:00:02]} 45. Ke1 {[%emt 0:00:04]} (45. Kg1 $142) 45... Ke5 {[%emt 0:00:02]} 46. Bg8 {[%emt 0:00:06]} (46. Kf1 $142) 46... Rxb4 {[%emt 0:00:10] Black is clearly winning.} 47. Bh7 {[%emt 0:00:01]} Kf6 {[%emt 0:00:06]} 48. Bg8 {[%emt 0:00:08]} Rb5 {[%emt 0:00:02]} 49. Nd7+ {[%emt 0:00:00]} Ke7 {[%emt 0:00:01][%mdl 64] Trapped Piece.   Weighted Error Value: White=0.54/Black=0.30} 0-1

[Event "CCT Airthings Masters Play-In 2023"]
[Site "Online"]
[Date "2023.02.03"]
[Round "2"]
[White "KantorGergely"]
[Black "Lazavik, Denis"]
[Result "0-1"]
[ECO "E11"]
[WhiteElo "2535"]
[BlackElo "2541"]
[Annotator "TA"]
[PlyCount "98"]
[EventDate "2023.02.03"]
[EventType "swiss"]
[EventCountry "NET"]
[SourceTitle "playchess.com"]
[Source "ChessBase"]
[SourceQuality "1"]
[TimeControl "600+2"]

{[%evp 12,98,19,27,18,0,7,2,7,-7,-2,-33,-28,-33,-1,-56,-56,-63,-57,-120,-101,-114,-122,-98,-120,-113,-100,-114,-93,-100,-77,-67,-56,-62,-60,-86,-93,-89,-87,-91,-72,-76,-69,-79,-76,-133,-64,-80,-73,-58,-60,-75,-68,-111,-95,-117,-111,-181,-182,-194,-195,-263,-255,-252,-177,-187,-166,-435,-427,-449,-449,-553,-544,-545,-538,-1016,-961,-929,-928,-855,-827,-29993,-29994,-29994,-29995,-29995,-359,-29996,-29987]} 1. d4 {[%emt 0:06:20]} Nf6 {[%emt 0:00:05]} 2. c4 {[%emt 0:00:02]} e6 {[%emt 0:00:01]} 3. Nf3 {[%emt 0:00:01]} d5 {[%emt 0:00:01]} 4. g3 {[%emt 0:00:01]} Bb4+ {[%emt 0:00:04]} 5. Bd2 {[%emt 0:00:02]} a5 {[%emt 0:00:02]} 6. Bg2 {[%emt 0:00:01]} O-O {[%emt 0:00:02]} 7. Qc2 {[%emt 0:00:03]} c5 {[%emt 0:00:01] E11: Bogo-Indian.} 8. O-O {[%emt 0:00:01]} cxd4 {[%emt 0:00:05]} 9. Nxd4 {[%emt 0:00:02]} Nc6 {[%emt 0:00:02] The position is equal.} 10. Nxc6 {[%emt 0:00:07]} bxc6 {[%emt 0:00:00] [#]} 11. Nc3 $146 {[%emt 0:00:00]} ({Predecessor:} 11. a3 Bxd2 12. Nxd2 Ba6 13. Rfc1 Qb6 14. e3 Rab8 15. Rab1 h5 16. b4 axb4 17. axb4 {1-0 Harshavardhan,G (2367)-Zia,T (2307) Titled Tuesday intern op 03rd May Early blitz 2022 (7)}) 11... Ba6 {[%emt 0:00:05]} 12. b3 {[%emt 0:00:21]} Qe7 {[%emt 0:00:21]} 13. a3 {[%emt 0:00:10]} Bxa3 $15 {[%emt 0:00:14]} 14. Na4 {[%emt 0:00:10]} Bb4 {[%emt 0:00:06]} 15. Nb6 {[%emt 0:00:12]} (15. Bc3 $15) 15... Rab8 $17 {[%emt 0:00:13]} 16. Bxb4 {[%emt 0:00:05][%mdl 64] Remove Defender} Qxb4 {[%emt 0:00:00]} 17. c5 {[%emt 0:00:01] [#]} Bb5 {[%emt 0:00:17] Dodges Ra4} 18. Ra2 {[%emt 0:00:15]} d4 {[%emt 0:00:20]} 19. Rfa1 {[%emt 0:00:04]} Rbd8 {[%emt 0:00:07]} 20. Rxa5 {[%emt 0:00:05]} d3 {[%emt 0:00:03]} 21. exd3 {[%emt 0:00:02]} Bxd3 {[%emt 0:00:09]} 22. Qb2 {[%emt 0:00:09]} Bb5 {[%emt 0:00:05] And now ...Rd2 would win.} 23. R5a2 {[%emt 0:00:14]} Qxc5 {[%emt 0:00:04]} 24. Na4 {[%emt 0:00:06]} Qb4 {[%emt 0:00:11] Black has more active pieces.} 25. Qc3 {[%emt 0:00:00] Against Rd3} Qg4 {[%emt 0:00:09] [#] White must now prevent ...Rd1+.} 26. h3 {[%emt 0:00:04]} Qf5 {[%emt 0:00:10]} 27. Nc5 {[%emt 0:00:02]} h5 {[%emt 0:00:04][%cal Oh5h4]} 28. b4 {[%emt 0:00:05]} (28. h4 $142) 28... Rd6 {[%emt 0:00:18]} (28... h4 $17 29. Ra7 Qg5) 29. Ra8 {[%emt 0:00:04]} Rxa8 {[%emt 0:00:29]} 30. Rxa8+ {[%emt 0:00:02]} Kh7 {[%emt 0:00:01] ( -> ...Rd1+)} 31. Ra1 {[%emt 0:00:07] Wards off Rd1+} g6 {[%emt 0:00:26] Black continues to play with concentration.} 32. Bf3 {[%emt 0:00:28]} e5 {[%emt 0:00:21][%cal Od6d3]} 33. Re1 {[%emt 0:00:03]} Rd4 {[%emt 0:00:08]} (33... Qxh3 $2 34. Qxe5 Qf5 35. Qxd6 $18) 34. Qe3 {[%emt 0:00:17]} (34. Bg2 $17 {keeps fighting.}) 34... Rxb4 $19 {[%emt 0:00:12]} ({Resist} 34... Qxh3 35. Qxe5 $16) 35. Bg2 {[%emt 0:00:15]} Rb1 {[%emt 0:00:19]} 36. Rxb1 {[%emt 0:00:06]} (36. Kh2 {was called for.}) 36... Qxb1+ {[%emt 0:00:01]} 37. Kh2 {[%emt 0:00:01]} Qf5 {[%emt 0:00:01]} 38. Nb7 {[%emt 0:00:02]} Qe6 {[%emt 0:00:11] Wards off Nd6} ({And not} 38... Nd5 39. Bxd5 cxd5 40. Nd6 $17) 39. Nd8 $2 {[%emt 0:00:05]} (39. Qc3) 39... Qd7 {[%emt 0:00:05]} 40. Qb6 {[%emt 0:00:12]} e4 {[%emt 0:00:02]} 41. Nb7 {[%emt 0:00:03]} Nd5 {[%emt 0:00:22]} 42. Qa7 {[%emt 0:00:01]} Qe7 {[%emt 0:00:01]} 43. Qb8 {[%emt 0:00:06]} e3 {[%emt 0:00:03]} 44. fxe3 {[%emt 0:00:00]} Nxe3 {[%emt 0:00:00]} 45. Nd6 {[%emt 0:00:07]} Nxg2 {[%emt 0:00:04]} 46. Kxg2 {[%emt 0:00:24]} Qe2+ {[%emt 0:00:04]} 47. Kg1 {[%emt 0:00:01]} Qf1+ {[%emt 0:00:01]} 48. Kh2 {[%emt 0:00:01]} Qf2+ {[%emt 0:00:01]} 49. Kh1 {[%emt 0:00:01]} Be2 {[%emt 0:00:01] Weighted Error Value: White=0.44/Black=0.07 (flawless)} 0-1

[Event "CCT Airthings Masters Play-In 2023"]
[Site "Online"]
[Date "2023.02.03"]
[Round "2"]
[White "promen"]
[Black "Vidit, Santosh Gujrathi"]
[Result "1/2-1/2"]
[ECO "D02"]
[WhiteElo "2526"]
[BlackElo "2730"]
[Annotator "TA"]
[PlyCount "175"]
[EventDate "2023.02.03"]
[EventType "swiss"]
[EventCountry "NET"]
[SourceTitle "playchess.com"]
[Source "ChessBase"]
[SourceQuality "1"]
[TimeControl "600+2"]

{[%evp 11,175,0,13,0,0,0,14,6,8,1,14,3,7,1,19,0,4,0,0,0,0,0,0,0,10,4,2,-12,0,-5,10,5,10,0,0,0,0,0,0,0,10,0,16,15,32,0,36,0,0,0,0,-17,0,0,0,0,0,0,0,0,0,0,0,0,0,0,0,-235,-251,-255,-251,-263,-149,-136,-138,-143,-72,-73,-72,-100,-45,-65,-65,-61,-65,-61,-73,-93,-96,-93,-80,-90,-92,-160,-97,-155,-80,-87,-51,-137,-137,-130,-127,-127,-127,-125,-118,-207,-188,-189,-55,-219,-219,-219,-215,-212,-209,-205,-193,-217,-206,-185,-170,-186,-139,-228,-209,-251,-226,-208,0,-727,-705,-12843,-12844,-12845,-12845,-12845,-12846,-12850,0,0,0,0,0,0,0,0,0,0,0,0,0,0,0,0,0,0,0,0,0,0,0,0,0,0]} 1. Nf3 {[%emt 0:00:06]} d5 {[%emt 0:00:09]} 2. g3 {[%emt 0:00:04]} g6 {[%emt 0:00:21]} 3. Bg2 {[%emt 0:00:03]} Bg7 {[%emt 0:00:02]} 4. d4 {[%emt 0:00:02]} Nf6 {[%emt 0:00:01]} 5. O-O {[%emt 0:00:03]} O-O {[%emt 0:00:02]} 6. c3 {[%emt 0:00:05]} c6 {[%emt 0:00:17]} 7. a4 {[%emt 0:00:05] D02: 1 d4 d5 2 Nf3 sidelines, including 2...Nf6 3 g3 and 2...Nf6 3 Bf4.} a5 {[%emt 0:00:17]} 8. Nbd2 {[%emt 0:00:03]} Re8 {[%emt 0:00:34]} 9. Re1 {[%emt 0:00:27]} Bf5 {[%emt 0:00:29]} 10. Nh4 {[%emt 0:00:04] [#]} Bg4 $146 {[%emt 0:00:24]} ({Predecessor:} 10... Be6 11. e4 dxe4 12. Nxe4 Nxe4 13. Bxe4 Bd5 14. Bxd5 Qxd5 15. Ng2 Nd7 16. Ne3 Qd6 17. Nc4 Qd5 18. Ne3 Qd6 19. Nc4 Qd5 20. Ne3 Qd6 21. Nc4 {½-½ Gabrielian,A (2576)-Panarin,M (2558) RUS-chT2 Sochi 2015 (5.5)}) 11. h3 {[%emt 0:00:04]} Be6 {[%emt 0:00:01]} 12. Nhf3 {[%emt 0:00:01]} h6 {[%emt 0:00:14] Wards off Ng5} (12... Qc8 $5 {[%cal Re6h3]}) 13. Ne5 {[%emt 0:01:01]} Nbd7 {[%emt 0:00:10]} 14. Nd3 {[%emt 0:00:03]} Bf5 {[%emt 0:00:22]} 15. g4 {[%emt 0:00:34]} Bxd3 {[%emt 0:01:33]} 16. exd3 {[%emt 0:00:00]} e5 {[%emt 0:00:01]} 17. dxe5 {[%emt 0:00:03]} Nxe5 {[%emt 0:00:00]} 18. Nb3 {[%emt 0:00:02]} Ned7 {[%emt 0:01:05]} 19. Be3 {[%emt 0:00:21]} Qc7 {[%emt 0:00:06]} 20. Qd2 {[%emt 0:00:17]} Kh7 {[%emt 0:00:07]} 21. Re2 {[%emt 0:00:48]} Re7 {[%emt 0:00:20]} 22. Rae1 {[%emt 0:00:06]} Rae8 {[%emt 0:00:02]} 23. Bd4 {[%emt 0:01:50]} Rxe2 {[%emt 0:00:15]} 24. Rxe2 {[%emt 0:00:00]} Rxe2 {[%emt 0:00:33]} 25. Qxe2 {[%emt 0:00:00]} Bf8 {[%emt 0:00:10]} 26. Qf3 {[%emt 0:00:16]} Bg7 {[%emt 0:00:19]} 27. Be3 {[%emt 0:01:46]} Bf8 {[%emt 0:00:42]} 28. Bd4 {[%emt 0:00:07]} Be7 {[%emt 0:00:26]} 29. h4 {[%emt 0:00:48] Strongly threatening g5.} Kg8 {[%emt 0:00:13]} ({Don't take} 29... Ne5 30. Qf4 Nfd7 31. Qg3 $16) 30. Bh3 {[%emt 0:00:02]} Nh7 {[%emt 0:00:18]} 31. Qg3 {[%emt 0:00:44]} (31. Qe3 {is interesting.} Bf8 32. Qe8 g5 33. Nd2) 31... Qd8 {[%emt 0:00:30]} (31... Bd6 {seems wilder.} 32. Qe3 g5 33. Qe8+ Nhf8) 32. h5 {[%emt 0:00:01]} Ng5 {[%emt 0:00:10]} 33. hxg6 {[%emt 0:00:05]} fxg6 {[%emt 0:00:02]} 34. Bg2 {[%emt 0:00:01]} Ne6 {[%emt 0:00:06]} 35. Qe3 {[%emt 0:00:02]} Nxd4 {[%emt 0:00:23]} 36. Nxd4 {[%emt 0:00:01]} Bg5 {[%emt 0:00:19]} 37. f4 {[%emt 0:00:49]} Qe7 {[%emt 0:00:01]} 38. Qxe7 {[%emt 0:00:06]} Bxe7 $11 {[%emt 0:00:00][%mdl 4096] Endgame KBN-KBN} 39. Ne6 {[%emt 0:00:09]} (39. Nb3 $1 $11) 39... Kf7 $19 {[%emt 0:00:02]} 40. f5 {[%emt 0:00:04]} Ne5 {[%emt 0:00:10][%csl LRd3,LRg4]} 41. Nf4 {[%emt 0:00:08]} gxf5 {[%emt 0:00:02]} ({Weaker is} 41... Nxg4 42. fxg6+ Kg7 43. Bh3 $15) (41... g5 $19 42. d4 Nxg4) 42. gxf5 $17 {[%emt 0:00:01]} Bg5 {[%emt 0:00:01]} 43. d4 {[%emt 0:00:00]} Nc4 {[%emt 0:00:04]} (43... Bxf4 $142 44. dxe5 Bxe5) 44. Nd3 {[%emt 0:00:01]} Kf6 {[%emt 0:00:02]} 45. Bh3 {[%emt 0:00:02]} Bh4 {[%emt 0:00:03]} (45... h5 $17) 46. Kg2 {[%emt 0:00:01]} Ne3+ {[%emt 0:00:02]} 47. Kf3 {[%emt 0:00:01]} Nxf5 {[%emt 0:00:01]} 48. Nc5 {[%emt 0:00:01]} Nd6 {[%emt 0:00:01]} 49. Nd7+ {[%emt 0:00:03]} Ke7 {[%emt 0:00:01]} 50. Ne5 {[%emt 0:00:01] aiming for Ng6+.} Bg5 {[%emt 0:00:00]} 51. Nd3 {[%emt 0:00:02]} Nc4 {[%emt 0:00:04]} 52. Bc8 {[%emt 0:00:02] [#]} (52. Bg2 $142) 52... b6 {[%emt 0:00:00]} (52... b5 $142 $1 {[%cal Rb5a4]} 53. axb5 cxb5) 53. Bf5 {[%emt 0:00:04] [#]} (53. Ke2 $142) 53... Kd6 {[%emt 0:00:01]} ({Black should play} 53... b5 $1 {[%cal Rb5a4]} 54. axb5 cxb5) 54. Ke2 {[%emt 0:00:01]} c5 {[%emt 0:00:04]} 55. b3 {[%emt 0:00:02]} (55. dxc5+ $15 bxc5 56. b4) 55... Ne3 {[%emt 0:00:01]} 56. dxc5+ {[%emt 0:00:04]} bxc5 {[%emt 0:00:00]} 57. Bg6 {[%emt 0:00:01]} c4 {[%emt 0:00:08]} 58. bxc4 {[%emt 0:00:02]} Nxc4 {[%emt 0:00:00]} 59. Be8 {[%emt 0:00:01]} (59. Kd1 $17) 59... Bf6 {[%emt 0:00:01]} 60. Nf4 {[%emt 0:00:07]} Bxc3 {[%emt 0:00:02]} ({Black should try} 60... Be5 $19 61. Ng2 Bxc3) 61. Bf7 $2 {[%emt 0:00:00]} (61. Kd3 $1 $15 Ke5 62. Nxd5 (62. Ng6+ Kf6 $15)) 61... Nb6 $19 {[%emt 0:00:01]} 62. Be8 {[%emt 0:00:03]} Be5 {[%emt 0:00:01]} 63. Nd3 {[%emt 0:00:01]} Bf6 {[%emt 0:00:04]} 64. Kf3 {[%emt 0:00:03]} Nc4 {[%emt 0:00:01]} 65. Kf4 {[%emt 0:00:02]} Bg5+ {[%emt 0:00:02]} 66. Kf5 {[%emt 0:00:00]} Ne3+ {[%emt 0:00:02]} 67. Kg6 {[%emt 0:00:02]} d4 {[%emt 0:00:01]} (67... Nd1 $19 68. Kh5 Nc3) 68. Bb5 {[%emt 0:00:01]} (68. Bf7 $17) 68... Kd5 {[%emt 0:00:02]} 69. Kh5 {[%emt 0:00:01]} Ke4 {[%emt 0:00:02]} 70. Nc5+ {[%emt 0:00:01]} Kd5 $2 {[%emt 0:00:00]} (70... Kf3 $19 {...Ng2 would be deadly.} 71. Ba6 Kg3) 71. Nb7 $2 {[%emt 0:00:01][%mdl 8192]} (71. Nd3 $11) 71... Nc4 {[%emt 0:00:03]} 72. Bxc4+ {[%emt 0:00:04]} Kxc4 {[%emt 0:00:00]} 73. Nxa5+ {[%emt 0:00:00] KB-KN} Kc3 {[%emt 0:00:04]} 74. Nb7 {[%emt 0:00:09]} Kb4 {[%emt 0:00:09]} 75. Nd6 {[%emt 0:00:01]} d3 $2 {[%emt 0:00:02]} (75... Kxa4 $19 76. Ne4 Kb3) 76. Ne4 $11 {[%emt 0:00:03] The position is equal.} Ka5 {[%emt 0:00:03]} 77. Kg4 {[%emt 0:00:01]} Be7 {[%emt 0:00:02]} 78. Kf3 {[%emt 0:00:01]} Kxa4 {[%emt 0:00:01] Threatens to win with ...Kb3.} 79. Ke3 {[%emt 0:00:01]} Kb3 {[%emt 0:00:00]} 80. Kxd3 {[%emt 0:00:00]} h5 {[%emt 0:00:01]} 81. Ke2 {[%emt 0:00:00]} h4 {[%emt 0:00:00]} 82. Kf3 {[%emt 0:00:00]} Kc4 {[%emt 0:00:00]} 83. Nf2 {[%emt 0:00:02]} Kd5 {[%emt 0:00:02]} 84. Nh3 {[%emt 0:00:01]} Ke6 {[%emt 0:00:01]} 85. Kg2 {[%emt 0:00:00]} Kf5 {[%emt 0:00:01]} 86. Ng1 {[%emt 0:00:01]} Bf6 {[%emt 0:00:00]} 87. Nf3 {[%emt 0:00:01]} Kg4 {[%emt 0:00:01]} 88. Nxh4 {[%emt 0:00:01] Whites escaped into a draw.   Weighted Error Value: White=0.18 (very precise) /Black=0.17 (very precise)} 1/2-1/2